[Event "4NCL Div 1 2024-25"]
[Site "England"]
[Date "2025.01.26"]
[Round "4.27"]
[White "Birtwistle, Nigel"]
[Black "Ledger, Andrew J"]
[Result "0-1"]
[Annotator "TA"]
[ECO "A46"]
[WhiteElo "2041"]
[BlackElo "2328"]
[PlyCount "88"]
[EventDate "2024.11.23"]
[EventType "team-tourn"]
[EventCountry "ENG"]
[SourceTitle "playchess.com"]
[Source "ChessBase"]
[SourceQuality "1"]
[TimeControl "40/6000+30:3000+30"]

{[%evp 12,88,-1,-2,36,31,40,30,30,6,37,40,57,10,35,35,83,85,85,94,101,34,45,10,27,4,27,0,0,0,-2,-13,36,-22,-32,-33,-14,-20,-12,-10,-14,-18,-6,0,-14,-14,-14,-87,-81,-87,-52,-45,-48,-69,-23,-27,-14,-83,-80,-815,-873,-872,-874,-871,-870,-883,-861,-1626,-1984,-29985,-29986,-29990,-29985,-29991,-208,-29986,-29987,-29991,-2872]} 1. d4 {[%emt 0:10:10]} Nf6 {[%emt 0:10:03]} 2. Nf3 {[%emt 0:00:17]} e6 {[%emt 0:00:46]} 3. g3 {[%emt 0:00:36]} b5 {[%emt 0:02:30]} 4. Bg2 {[%emt 0:07:27]} Bb7 {[%emt 0:00:07]} 5. O-O {[%emt 0:00:21]} c5 {[%emt 0:00:56]} 6. a4 {[%emt 0:11:47]} b4 {[%emt 0:02:23]} 7. c4 {[%emt 0:09:34]} Na6 {[%emt 0:11:34][%cal Bb8a6,Ba6c7,Bc7e6][%mdl 32] [#]} 8. d5 $1 {[%emt 0:07:24]} exd5 {[%emt 0:11:25]} 9. Nh4 {[%emt 0:01:13]} Nc7 {[%emt 0:19:35] White has an edge.} 10. cxd5 {[%emt 0:08:35]} Nfxd5 {[%emt 0:04:34]} 11. e4 {[%emt 0:06:18]} Nb6 {[%emt 0:01:37]} 12. Nf5 {[%emt 0:06:09]} (12. a5 $14 Nc8 13. Nd2) 12... Ne6 {[%emt 0:03:41]} 13. a5 {[%emt 0:03:03][%mdl 1024] White has compensation.} Nc8 {[%emt 0:00:15]} (13... Nc4 $14 {feels stronger.}) 14. b3 $16 {[%emt 0:00:45]} Be7 {[%emt 0:05:00]} 15. Bb2 {[%emt 0:05:49]} O-O {[%emt 0:00:07] [#]} 16. Qg4 {[%emt 0:04:19]} (16. Nd2 $1 $16) 16... f6 $1 $14 {[%emt 0:01:38]} 17. Rd1 {[%emt 0:02:03][%cal Of5g7] Inhibits Nd6. Nxg7! is the strong threat.} Qe8 $1 {[%emt 0:06:40]} 18. Bf1 {[%emt 0:06:55]} g6 {[%emt 0:03:43]} 19. Bb5 {[%emt 0:10:01]} h5 {[%emt 0:23:26]} 20. Nxe7+ {[%emt 0:01:32]} Nxe7 {[%emt 0:00:00]} 21. Qe2 {[%emt 0:02:34]} Bc6 {[%emt 0:00:00]} (21... Rd8 $11 {deserves consideration.}) 22. Nd2 {[%emt 0:01:26]} (22. Bc4 $1 $14) 22... Bxb5 $11 {[%emt 0:00:00]} 23. Qxb5 {[%emt 0:00:12]} Nc6 {[%emt 0:00:00]} 24. Qc4 {[%emt 0:00:59]} Qf7 {[%emt 0:00:00]} 25. f4 {[%emt 0:01:16]} Rae8 {[%emt 0:00:00][%cal Oh5h4]} 26. Qd5 {[%emt 0:01:24]} Ned4 {[%emt 0:00:00] Black wants to play ...Ne2+.} 27. Qxc5 {[%emt 0:01:02]} Nxb3 {[%emt 0:00:00]} 28. Nxb3 {[%emt 0:00:19]} Qxb3 {[%emt 0:00:00]} 29. Rab1 {[%emt 0:00:14]} (29. Qd5+ $1 $11 Qxd5 30. exd5) 29... Rxe4 {[%emt 0:00:00]} 30. Rxd7 {[%emt 0:01:09][%cal Od7g7]} Qc4 {[%emt 0:00:49]} (30... Qe6 {is more complex.} 31. Rd6 Re1+ 32. Rxe1 Qxe1+ 33. Kg2 Qe2+) 31. Qxc4+ {[%emt 0:00:29]} Rxc4 {[%emt 0:00:05]} 32. a6 {[%emt 0:00:26]} Re8 {[%emt 0:01:56]} (32... Rc2 $15) 33. Bxf6 {[%emt 0:00:41]} Re2 {[%emt 0:00:20]} 34. Rbd1 {[%emt 0:00:29]} (34. Rb7 $11) 34... Rcc2 $17 {[%emt 0:00:51][%cal Ob4b3]} 35. Bd4 $2 {[%emt 0:00:23][%mdl 8192] This move loses the game for White.} (35. Rb7 $17) 35... Nxd4 $19 {[%emt 0:01:24]} (35... Rxh2 36. Bxa7 Nxa7 37. Rxa7 Rcg2+ 38. Kf1 Rf2+ (38... Rxg3 39. Rd8#) 39. Ke1 Re2+ 40. Kf1 Ref2+ 41. Ke1 Re2+ 42. Kf1 Rhf2+ 43. Kg1 Rg2+ 44. Kf1 Rgf2+ 45. Kg1 Rg2+ 46. Kh1 Rh2+ 47. Kg1 Reg2+ 48. Kf1 Rf2+ $11 (48... Rxg3 49. Rd8#)) 36. R7xd4 {[%emt 0:00:06][%mdl 4096] Endgame. KRR-KRR} b3 {[%emt 0:00:38][%cal Ob3b2]} (36... Rxh2 37. Rxb4 Rcg2+ 38. Kf1 $11) 37. Rd8+ {[%emt 0:00:52]} Kf7 {[%emt 0:00:05][%cal Ob3b2] ...b2! would now be deadly.} 38. R8d7+ {[%emt 0:00:11]} Ke6 {[%emt 0:00:27] White must now prevent ...b2.} 39. f5+ {[%emt 0:00:43]} Kxf5 {[%emt 0:01:19]} 40. Rxa7 {[%emt 0:00:37]} Rg2+ {[%emt 0:01:08]} 41. Kh1 {[%emt 0:25:11]} Rxh2+ {[%emt 0:20:06]} 42. Kg1 {[%emt 0:00:07]} Rcg2+ {[%emt 0:07:10]} 43. Kf1 {[%emt 0:01:20]} Ra2 {[%emt 0:00:12][%cal Rh2h1]} (43... Rxg3 44. Rf7+ Kg4 45. a7 $19) 44. Kg1 {[%emt 0:01:06]} Rhc2 {[%emt 0:04:29] Weighted Error Value: White=0.59/Black=0.26 (precise) .  Loses game:     	White=1     	---        Mistake:       	White=5     	Black=3      Inaccurate:     	White=1     	Black=2      OK:         	White=10    	Black=4      Best:        	White=3     	Black=4      Strong:       	---       	Black=2} (44... Kg4 $142 45. Rd3 Rhg2+ 46. Kf1 Kh3 (46... Rxg3 $2 47. Rxg3+ Kxg3 48. Rb7 $19) 47. Rad7 Kh2 (47... Rxg3 $2 48. a7 $19) (47... Ra1+ {is a self mate.} 48. Rd1 b2 49. Ke1 b1=Q 50. Rxb1 Rxb1+ 51. Rd1 Rbb2 52. Kf1 Kh2 53. Rd2 Rb1+ 54. Rd1 Rxd1#) 48. Rd2 Rgxd2 (48... Raxd2 {gets mated.} 49. Rxd2 Rxd2 50. g4 b2 51. Ke1 Rc2 52. gxh5 b1=Q#) 49. Ke1 Rxd7 50. g4 Rd3 (50... Rxa6 $2 {leads to mate.} 51. Kf2 Re6 52. gxh5 Rf7#) (50... b2 51. Ke2 b1=Q+ 52. Ke3 Kg3 53. gxh5 Qe1#) 51. gxh5 b2 52. hxg6 b1=Q#) 0-1

[Event "4NCL Div 1 2024-25"]
[Site "England"]
[Date "2025.01.26"]
[Round "4.28"]
[White "Ansell, Simon T"]
[Black "Lentzos, Ioanis"]
[Result "1-0"]
[Annotator "TA"]
[ECO "B12"]
[WhiteElo "2323"]
[BlackElo "2126"]
[PlyCount "121"]
[EventDate "2024.11.23"]
[EventType "team-tourn"]
[EventCountry "ENG"]
[SourceTitle "playchess.com"]
[Source "ChessBase"]
[SourceQuality "1"]
[TimeControl "40/6000+30:3000+30"]

{[%evp 9,121,11,22,2,12,15,22,-5,0,-8,7,-4,-12,-15,10,-25,0,0,34,33,51,22,18,10,13,19,26,-6,67,-27,41,0,0,0,0,0,0,0,87,19,20,23,37,41,41,35,37,38,57,22,40,10,78,84,86,69,115,139,305,89,94,83,102,95,104,79,68,35,35,35,35,35,43,43,32,41,164,165,166,159,162,102,151,77,123,85,294,161,146,94,119,97,326,350,1295,1141,1737,1676,1637,1387,1696,1608,1452,1389,2493,1503,1655,1482,29978,29979,29982,29983,29983,29984]} 1. e4 {[%emt 0:10:09]} c6 {[%emt 0:10:02]} 2. d4 {[%emt 0:00:41]} d5 {[%emt 0:00:09]} 3. e5 {[%emt 0:00:10]} Bf5 {[%emt 0:00:10]} 4. Nd2 {[%emt 0:01:30]} e6 {[%emt 0:00:08]} 5. Nb3 {[%emt 0:00:38]} a6 {[%emt 0:00:05]} 6. Nf3 {[%emt 0:06:10] B12: Caro-Kann: Advance Variation.} c5 {[%emt 0:00:09]} 7. dxc5 {[%emt 0:02:17]} Bxc5 {[%emt 0:00:09]} 8. Bd3 $146 {[%emt 0:15:06] [#] The position is equal.} (8. Nxc5 Qa5+ 9. c3 Qxc5 10. Nd4 Ne7 11. Be2 O-O 12. Be3 Qc7 13. f4 Be4 14. O-O {0-1 Pichot,A (2644)-Nihal,S (2693) Titled Tuesday intern op 06th Feb Late blitz 2024 (6)}) 8... Ne7 {[%emt 0:15:06]} 9. O-O {[%emt 0:01:58]} (9. Bg5 Bxd3) 9... Nd7 {[%emt 0:01:25]} 10. Bg5 {[%emt 0:07:29]} Bg4 {[%emt 0:05:14][%cal Bf5g4,Bg4h5,Bh5g6][%mdl 32]} 11. Re1 {[%emt 0:04:56]} Qc7 {[%emt 0:10:16]} 12. Nxc5 {[%emt 0:03:03]} Qxc5 {[%emt 0:02:08]} (12... Nxc5 13. Bxe7 Qxe7 14. c3 Bxf3 15. Qxf3 Nxd3 16. Qxd3 O-O) 13. Bxe7 {[%emt 0:02:51]} Kxe7 {[%emt 0:12:16]} 14. h3 {[%emt 0:01:54]} Bh5 {[%emt 0:03:10]} 15. g4 {[%emt 0:04:25]} Bg6 {[%emt 0:00:17]} 16. Qd2 {[%emt 0:00:07]} Rhc8 {[%emt 0:05:53]} 17. Qf4 {[%emt 0:02:54]} Ke8 {[%emt 0:14:12]} 18. Re3 {[%emt 0:09:52]} Rc7 {[%emt 0:05:42]} (18... Bxd3 $11 19. cxd3 Nf8) 19. h4 {[%emt 0:08:36]} (19. Bxg6 $1 $14 hxg6 20. Rc3) 19... Rac8 {[%emt 0:03:46]} (19... Bxd3 $11 20. cxd3 Qc2) 20. Rae1 {[%emt 0:11:47]} (20. Bxg6 {simplifies} hxg6 21. c3 Qe7 22. Kg2) 20... Nf8 {[%emt 0:02:49]} 21. h5 {[%emt 0:00:33]} Bxd3 {[%emt 0:00:06]} 22. cxd3 {[%emt 0:00:05]} Qa5 {[%emt 0:02:49]} 23. a3 {[%emt 0:01:21]} Rc1 {[%emt 0:06:22]} (23... Rc2 $11) 24. Kg2 {[%emt 0:02:21]} (24. Rxc1 $16 Rxc1+ 25. Kg2) 24... Rxe1 $11 {[%emt 0:03:33]} 25. Rxe1 {[%emt 0:00:06]} Rc2 {[%emt 0:00:45][%cal Oa5b6]} 26. Rc1 {[%emt 0:01:06]} Rxc1 {[%emt 0:01:39]} 27. Qxc1 $14 {[%emt 0:01:32][%mdl 4096] Endgame KQN-KQN} Qb5 {[%emt 0:00:05]} 28. Qc3 {[%emt 0:01:46]} Qc6 {[%emt 0:01:09]} 29. Qb4 {[%emt 0:01:43]} Nd7 {[%emt 0:00:37]} 30. Qf4 {[%emt 0:01:38]} Qc7 {[%emt 0:01:40]} (30... Nc5 $1 $11) 31. Qg5 $16 {[%emt 0:02:01]} Kf8 {[%emt 0:00:46]} 32. h6 {[%emt 0:00:50]} g6 {[%emt 0:02:20]} (32... gxh6 $14 {might be stronger.} 33. Qxh6+ Ke7) 33. d4 {[%emt 0:00:24]} (33. Qf4 {with more complications.} Kg8 34. Ng5 f6 35. Qb4) 33... Ke8 $2 {[%emt 0:00:21] [#]} (33... Qc8 $16 34. Qd2 Kg8) 34. Qd2 $2 {[%emt 0:00:51]} (34. Qe3 $1 $18) 34... f6 {[%emt 0:00:48]} 35. exf6 {[%emt 0:01:09]} Nxf6 {[%emt 0:00:04][%cal Of6e4]} 36. Ne5 {[%emt 0:00:10]} Qe7 {[%emt 0:00:58]} 37. Qc2 {[%emt 0:00:53]} Kd8 {[%emt 0:00:07] Prevents Qc8+.} 38. f3 {[%emt 0:01:06]} Nd7 {[%emt 0:00:18]} 39. Qe2 $36 {[%emt 0:00:59][%mdl 2048] White is more active.} Qh4 {[%emt 0:00:34]} 40. Qe3 {[%emt 0:01:44]} Qf6 {[%emt 0:01:48] [#] Dodges Nf7+} 41. Qg5 $1 {[%emt 0:24:26]} Qxg5 {[%emt 0:29:36]} 42. Nf7+ {[%emt 0:00:07]} Kc7 {[%emt 0:00:02]} (42... Ke7 $14 43. Nxg5 Nf6) 43. Nxg5 $18 {[%emt 0:00:07] KN-KN} Nf8 {[%emt 0:00:03]} 44. Kg3 {[%emt 0:00:55]} Kd6 {[%emt 0:12:49]} 45. Kf4 {[%emt 0:01:12]} ({White should try} 45. a4 $18) 45... Ke7 $16 {[%emt 0:03:28] [#]} 46. Ke3 {[%emt 0:00:15]} (46. a4 $142 $1) 46... Kd6 {[%emt 0:00:47]} (46... b5 $142) 47. f4 {[%emt 0:02:55]} Kc6 $2 {[%emt 0:00:46]} (47... Ke7 $16) 48. Nf7 {[%emt 0:04:35]} (48. f5 $142 {[%cal Og5h7] Nxh7! would now be deadly.} gxf5 (48... exf5 $2 {perishes.} 49. gxf5 gxf5 50. Kf4 $18) 49. gxf5) 48... Kb5 $18 {[%emt 0:01:04]} 49. Kd3 {[%emt 0:00:56]} (49. b3 $142) 49... Ka4 {[%emt 0:00:22] White must now prevent ...Kb3.} 50. Kc3 {[%emt 0:00:44]} b5 $2 {[%emt 0:01:12]} (50... a5 $16 51. Nd6 b6) 51. Ne5 {[%emt 0:01:03]} a5 $2 {[%emt 0:00:57]} (51... Ka5 52. b4+ Kb6) 52. Nd3 {[%emt 0:00:48][%cal Rd3c5]} Nd7 {[%emt 0:00:15]} 53. g5 {[%emt 0:00:34]} b4+ {[%emt 0:01:50]} 54. axb4 {[%emt 0:01:46]} axb4+ {[%emt 0:00:05]} 55. Nxb4 {[%emt 0:00:14]} Kb5 {[%emt 0:02:48]} 56. Nd3 {[%emt 0:00:29]} Ka4 {[%emt 0:01:24]} 57. Nf2 {[%emt 0:01:13]} Kb5 {[%emt 0:01:04]} 58. Ng4 {[%emt 0:00:09]} Nf8 {[%emt 0:00:28]} 59. Ne5 {[%emt 0:00:31] White mates.} Ka4 {[%emt 0:00:06]} 60. b4 {[%emt 0:00:30]} Kb5 {[%emt 0:00:27]} 61. Kb3 {[%emt 0:00:11] Weighted Error Value: White=0.36/Black=0.68  Loses game:     	---       	Black=3      Missed win:     	White=1     	---        Mistake:       	White=6     	Black=8      Inaccurate:     	White=9     	Black=2      OK:         	White=12    	Black=15     Best:        	White=5     	Black=1} 1-0

[Event "4NCL Div 1 2024-25"]
[Site "England"]
[Date "2025.01.26"]
[Round "4.29"]
[White "Dobrolyubov, Alexandr K"]
[Black "Duncan, Chris R"]
[Result "1/2-1/2"]
[Annotator "TA"]
[ECO "B30"]
[WhiteElo "1951"]
[BlackElo "2167"]
[PlyCount "46"]
[EventDate "2024.11.23"]
[EventType "team-tourn"]
[EventCountry "ENG"]
[SourceTitle "playchess.com"]
[Source "ChessBase"]
[SourceQuality "1"]
[TimeControl "40/6000+30:3000+30"]

{[%evp 10,46,15,7,17,-29,-32,-62,-51,-49,-5,-20,-7,2,-2,-2,14,-8,0,0,7,11,9,0,14,-17,-8,-18,0,0,0,0,-4,-30,7,0,7,0,6]} 1. e4 {[%emt 0:10:30]} c5 {[%emt 0:21:09]} 2. Nc3 {[%emt 0:00:00]} Nc6 {[%emt 0:00:12]} 3. Bb5 {[%emt 0:00:00]} Nd4 {[%emt 0:00:19]} 4. Nf3 {[%emt 0:00:00]} e6 {[%emt 0:00:14]} 5. O-O {[%emt 0:00:50]} a6 {[%emt 0:00:05]} 6. Bd3 {[%emt 0:00:07]} Nc6 {[%emt 0:00:40] B30: Sicilian: 2...Nc6 3 Bb5, lines without ...g6.} 7. Re1 {[%emt 0:00:55]} (7. b3 $142) 7... g5 $1 $11 {[%emt 0:00:07] and ...g4 should not be overlooked} 8. Kh1 {[%emt 0:03:36]} Bg7 {[%emt 0:00:53] Black is slightly better. was the old line (8...g4).} 9. Bf1 {[%emt 0:01:56][%cal Od2d4]} h6 {[%emt 0:01:59]} (9... g4 $5 10. Ng1 $8 Nge7 $15) 10. d3 {[%emt 0:07:27]} Nge7 {[%emt 0:03:32]} 11. Ne2 {[%emt 0:03:48]} d5 {[%emt 0:01:58]} 12. c3 {[%emt 0:01:21]} b6 $146 {[%emt 0:06:21]} (12... dxe4 13. dxe4 Qxd1 14. Rxd1 b6 15. Ng3 Rg8 16. Nd2 Ne5 17. Nc4 Nxc4 18. Bxc4 Bb7 {0-1 Tseitlin,M (2472)-Avrukh,B (2595) ISR-ch Tel Aviv 2002 (2)}) 13. h3 {[%emt 0:04:19]} Bb7 {[%emt 0:03:59]} 14. Ng3 {[%emt 0:01:03]} dxe4 {[%emt 0:09:19]} 15. dxe4 {[%emt 0:00:13]} Qxd1 {[%emt 0:12:07]} 16. Rxd1 {[%emt 0:00:02]} O-O {[%emt 0:02:30]} 17. Rd7 {[%emt 0:10:00]} Rab8 {[%emt 0:06:32]} 18. h4 {[%emt 0:07:45]} gxh4 {[%emt 0:04:46]} 19. Nxh4 {[%emt 0:00:03]} Rfd8 {[%emt 0:00:11]} 20. Rxd8+ {[%emt 0:00:15]} Rxd8 {[%emt 0:00:03]} 21. Be2 {[%emt 0:01:10] Prevents Rd1+.} Ng6 {[%emt 0:01:30]} 22. Nxg6 {[%emt 0:01:44]} fxg6 {[%emt 0:00:05]} 23. Be3 {[%emt 0:00:21]} Kf7 {[%emt 0:01:02] Weighted Error Value: White=0.11 (very precise) /Black=0.11 (very precise)   Mistake:       	White=1     	---        Inaccurate:     	White=3     	Black=2      OK:         	White=4     	Black=2      Strong:       	---       	Black=1} 1/2-1/2

[Event "4NCL Div 1 2024-25"]
[Site "England"]
[Date "2025.01.26"]
[Round "4.30"]
[White "Ledger, Dave J"]
[Black "Foisor, Mihaela-Veronica"]
[Result "1/2-1/2"]
[Annotator "TA"]
[ECO "C11"]
[WhiteElo "2191"]
[BlackElo "2156"]
[PlyCount "52"]
[EventDate "2024.11.23"]
[EventType "team-tourn"]
[EventCountry "ENG"]
[SourceTitle "playchess.com"]
[Source "ChessBase"]
[SourceQuality "1"]
[TimeControl "40/6000+30:3000+30"]

{[%evp 16,52,20,0,12,0,6,-24,-25,-47,-29,-44,8,0,19,16,12,7,20,19,19,18,18,29,27,25,14,13,14,11,20,0,0,-9,-10,-7,0,-37,-14]} 1. e4 {[%emt 0:10:04]} e6 {[%emt 0:10:02]} 2. d4 {[%emt 0:00:16]} d5 {[%emt 0:00:04]} 3. Nc3 {[%emt 0:00:05]} Nf6 {[%emt 0:01:01]} 4. e5 {[%emt 0:01:06]} Nfd7 {[%emt 0:00:06]} 5. f4 {[%emt 0:00:05]} c5 {[%emt 0:00:04]} 6. Nf3 {[%emt 0:00:04]} Nc6 {[%emt 0:00:45]} 7. Be3 {[%emt 0:00:34]} a6 {[%emt 0:04:53]} 8. Qd2 {[%emt 0:01:49]} b5 {[%emt 0:00:23]} 9. Bd3 {[%emt 0:07:16]} Qb6 {[%emt 0:00:33] C11: French: Classical System: 4 e5 and 4 Bg5 dxe4.} 10. dxc5 {[%emt 0:02:16]} Bxc5 {[%emt 0:01:00]} 11. Nd1 {[%emt 0:05:43]} a5 $146 {[%emt 0:06:32] Black has an edge.} (11... Bb7 12. O-O Rc8 13. Kh1 b4 14. Bxc5 Nxc5 15. Ne3 a5 16. f5 Ne4 17. Qe1 Ba6 18. fxe6 fxe6 {1-0 Kamsky,G (2623)-Mekhitarian,K (2554) Titled Tuesday intern op 16th Jan Late blitz 2024 (4)}) 12. a3 {[%emt 0:03:43]} Ba6 {[%emt 0:05:10]} 13. c3 {[%emt 0:14:42]} Bxe3 {[%emt 0:04:29]} (13... b4 $15 14. axb4 axb4) 14. Qxe3 $11 {[%emt 0:03:52]} Qxe3+ {[%emt 0:00:43]} 15. Nxe3 {[%emt 0:00:05]} Nc5 {[%emt 1:12:15]} 16. Bc2 {[%emt 0:02:18]} b4 {[%emt 0:00:00]} 17. axb4 {[%emt 0:01:30]} axb4 {[%emt 0:00:00]} 18. Nd4 {[%emt 0:01:36]} Kd7 {[%emt 0:00:00]} 19. Nxc6 {[%emt 0:03:41]} Kxc6 {[%emt 0:00:00]} 20. cxb4 {[%emt 0:00:30]} Nd3+ {[%emt 0:00:00]} 21. Bxd3 {[%emt 0:00:19]} Bxd3 {[%emt 0:00:00]} 22. Kd2 {[%emt 0:00:07]} Be4 {[%emt 0:00:00]} 23. Rhc1+ {[%emt 0:03:03]} Kb6 {[%emt 0:00:00]} 24. g3 {[%emt 0:03:23]} Rxa1 {[%emt 0:00:00]} 25. Rxa1 {[%emt 0:00:06]} Rc8 {[%emt 0:00:00]} 26. b3 {[%emt 0:02:46]} Rc7 {[%emt 0:00:00] Weighted Error Value: White=0.11 (very precise) /Black=0.11 (very precise)   Mistake:       	---       	Black=1      Inaccurate:     	White=2     	---        OK:         	White=6     	Black=8      Best:        	White=1     	---} 1/2-1/2

[Event "4NCL Div 1 2024-25"]
[Site "England"]
[Date "2025.01.26"]
[Round "4.31"]
[White "Milson, Samuel A"]
[Black "Varney, Zoe"]
[Result "1/2-1/2"]
[Annotator "TA"]
[ECO "C77"]
[WhiteElo "2069"]
[BlackElo "1996"]
[PlyCount "78"]
[EventDate "2024.11.23"]
[EventType "team-tourn"]
[EventCountry "ENG"]
[SourceTitle "playchess.com"]
[Source "ChessBase"]
[SourceQuality "1"]
[TimeControl "40/6000+30:3000+30"]

{[%evp 12,78,13,27,20,27,22,0,0,-4,0,-5,-6,-9,-14,-15,-12,-37,-36,-31,-37,-35,-35,-52,-27,-35,-37,-41,-33,-69,-59,-121,-123,-123,-115,-119,-60,-99,-108,-119,-16,-91,-111,-99,-79,-95,65,-74,-65,-50,148,164,506,505,453,0,0,0,0,0,0,0,0,0,0,0,0,0,0]} 1. e4 {[%emt 0:10:03]} e5 {[%emt 0:10:06]} 2. Nf3 {[%emt 0:00:12]} Nc6 {[%emt 0:00:09]} 3. Bb5 {[%emt 0:00:14][%cal Bf1b5,Bb5a4,Ba4b3,Bb3d5][%mdl 32]} Nf6 {[%emt 0:00:17]} 4. d3 {[%emt 0:02:39]} Bc5 {[%emt 0:00:12]} 5. Nc3 {[%emt 0:04:07]} a6 {[%emt 0:05:46]} 6. Ba4 {[%emt 0:00:16]} b5 {[%emt 0:00:45]} 7. Bb3 {[%emt 0:00:08]} h6 {[%emt 0:00:06] C77: Ruy Lopez: 3...a6 4 Ba4 Nf6, unusual lines.} 8. Nd5 {[%emt 0:02:25]} d6 {[%emt 0:14:17]} 9. Nxf6+ {[%emt 0:13:25]} Qxf6 {[%emt 0:02:01]} 10. Bd5 {[%emt 0:00:10]} Bd7 {[%emt 0:05:36]} 11. c3 {[%emt 0:03:07]} Rb8 {[%emt 0:02:46]} 12. O-O {[%emt 0:05:23]} Bb6 {[%emt 0:05:46]} 13. Be3 {[%emt 0:16:22]} Ne7 {[%emt 0:04:04]} 14. Ne1 $146 {[%emt 0:29:04]} (14. Bxb6 Rxb6 15. d4 Ng6 16. Qd2 Nf4 17. dxe5 dxe5 18. Bxf7+ Ke7 19. Bb3 Bh3 20. Ne1 Bxg2 {0-1 Olszewski,A (1681)-Celinski,K (1820) Warsaw Najdorf Memorial op-B 2023 (6)}) 14... Nxd5 {[%emt 0:16:30]} 15. exd5 {[%emt 0:00:11]} O-O {[%emt 0:00:51]} 16. Qd2 {[%emt 0:01:55]} Rfe8 {[%emt 0:08:20]} 17. Nc2 {[%emt 0:01:23]} Qg6 {[%emt 0:04:04]} 18. Bxb6 {[%emt 0:02:19]} Rxb6 {[%emt 0:00:43]} 19. f4 {[%emt 0:02:15]} Rbb8 {[%emt 0:11:41]} 20. Rad1 {[%emt 0:05:26]} exf4 {[%emt 0:06:53]} (20... a5 {simplifies} 21. b3 exf4 22. Rxf4 Re5) 21. Qxf4 {[%emt 0:00:53]} (21. Rxf4 $15 Re5 22. Re1) 21... Re2 $17 {[%emt 0:01:52][%csl Ge2,LRc2,LRg2][%cal Rg6g2] [#] Black attacks} 22. Rf2 {[%emt 0:02:30]} Rbe8 {[%emt 0:00:35][%cal Od7f5] Black plays in the center} 23. Rd2 {[%emt 0:01:00]} Qh5 {[%emt 0:03:39]} (23... R2e5 $17 24. c4 Kh7) 24. Rdxe2 {[%emt 0:02:19]} Rxe2 {[%emt 0:00:06]} 25. Ne3 {[%emt 0:00:26]} f6 {[%emt 0:03:39]} (25... Re1+ $17 26. Rf1 Re2) 26. h3 {[%emt 0:00:42]} (26. Kf1 $1 $11 {remains equal.} Rxf2+ 27. Kxf2) 26... Re1+ {[%emt 0:01:15]} 27. Kh2 {[%emt 0:00:46]} Qg6 {[%emt 0:00:45]} 28. Rd2 {[%emt 0:01:56] [#]} Bxh3 $2 {[%emt 0:00:42][%csl Og2] White has weak pawns} 29. g4 {[%emt 0:01:04]} (29. Qf2 $1 $14 {was the only good move.} Rxe3 30. Qxe3) 29... Qe8 {[%emt 0:00:46]} 30. Nc2 {[%emt 0:00:33][%cal Oc2e1]} Re2+ {[%emt 0:00:30]} (30... Rf1 $6 31. Qg3 $14) (30... g5 $15 {keeps the upper hand.} 31. Qd4 (31. Qf3 Bxg4 32. Qxg4 f5 $17) 31... Bxg4 (31... Re2+ 32. Rxe2 Qxe2+ 33. Kxh3 $11) 32. Nxe1 (32. Qxg4 f5 $17) 32... Qxe1) 31. Kxh3 $16 {[%emt 0:00:21]} g5 $2 {[%emt 0:00:24]} (31... h5 {is more resistant.} 32. Rxe2 Qxe2) 32. Rxe2 $18 {[%emt 0:01:09]} (32. Qxf6 $2 Rxd2 33. Nd4 Rxd3+ (33... Rxb2 34. Nf5 $11) 34. Kh2 Qe5+ 35. Qxe5 dxe5 $19) 32... Qxe2 {[%emt 0:00:04]} 33. Qe4 {[%emt 0:00:41]} ({And not} 33. Qxf6 Qxd3+ $17 (33... Qxc2 34. Qg6+ Kf8 35. Qxh6+ Ke8 36. Qxg5 $16)) (33. Nd4 $18 Qxd3+ 34. Qf3 Qxf3+ 35. Nxf3) 33... Qxc2 $11 {[%emt 0:00:44][%mdl 4096] Endgame KQ-KQ. Black is a pawn up. The position is equal.} 34. Qg6+ {[%emt 0:00:23]} Kf8 {[%emt 0:00:10]} 35. Qxf6+ {[%emt 0:00:56]} Ke8 {[%emt 0:00:12]} 36. Qe6+ {[%emt 0:00:46]} (36. Qxh6 $2 {is the wrong capture.} Qxd3+ 37. Kh2 Qxd5 $19) 36... Kd8 {[%emt 0:00:14]} 37. Qg8+ {[%emt 0:00:32]} Kd7 {[%emt 0:00:29]} 38. Qe6+ {[%emt 0:00:38]} Kd8 {[%emt 0:00:04]} 39. Qg8+ {[%emt 0:00:15]} Kd7 {[%emt 0:00:04] Weighted Error Value: White=0.33/Black=0.42  Missed win:     	White=1     	---        Mistake:       	White=3     	Black=5      Inaccurate:     	White=3     	---        OK:         	White=13    	Black=13     Best:        	White=3     	Black=5} 1/2-1/2